[Event "1.FrauenBL 2016-17"]
[Site "Berlin"]
[Date "2017.04.29"]
[Round "11.7"]
[White "Vidonyak, Nellya"]
[Black "Videnova, Iva"]
[Result "0-1"]
[ECO "A01"]
[WhiteElo "2120"]
[BlackElo "2370"]
[Annotator "NA"]
[PlyCount "100"]
[EventDate "2017.??.??"]
[EventType "team-tourn"]
[EventCountry "GER"]
[SourceTitle "playchess.com"]
[Source "ChessBase"]
[SourceQuality "1"]
[WhiteTeam "FC Bayern München"]
[BlackTeam "SK Schwäbisch Hall"]
[TimeControl "40/6000+30:3000+30"]

{[%evp 10,93,0,-6,-8,32767,-10,-7,-14,-45,10,32767,-28,-36,32767,-30,-20,-54,-17,-69,0,-27,-37,0,-25,-102,-60,-112,-97,32767,-154,32767,-177,32767,32767,-154,-208,-198,-199,32767,32767,-237,32767,32767,32767,32767,-183,32767,32767,32767,32767,-254,-195,32767,32767,-222,32767,32767,32767,-255,-247,-347,32767,32767,32767,32767,32767,32767,32767,32767,32767,32767,-1905,32767,32767,-1637,-1421,-1669,-836,-1520,-1490,32767,-767,32767,32767,-1069]} 1. b3 {[%emt 1:16:55]} g6 {[%emt 1:30:02]} 2. Bb2 {[%emt 1:17:11]} Nf6 {[%emt 1:30:23]} 3. e4 {[%emt 1:15:41]} Bg7 {[%emt 1:15:41]} 4. g3 {[%emt 1:15:43]} d6 {[%emt 1:24:11]} 5. Bg2 {[%emt 1:15:52]} e5 {[%emt 1:15:08] LiveBook: 14 Games} 6. Ne2 {[%emt 1:14:36]} h5 {[%emt 1:12:57]} 7. h3 {[%emt 1:12:04]} c5 {[%emt 1:12:24]} 8. Nbc3 {[%emt 1:10:37]} Nc6 {[%emt 1:11:46]} 9. Nd5 {[%emt 1:10:07]} Be6 {[%emt 0:58:58]} (9... Nxd5 $15 10. exd5 Nd4) 10. Nxf6+ {[%emt 1:08:34]} Bxf6 {[%emt 0:59:12]} 11. Nc3 {[%emt 1:08:37]} Qd7 {[%emt 0:57:23]} 12. Nd5 {[%emt 1:08:21]} Bg7 {[%emt 0:57:13]} 13. d3 {[%emt 0:57:13]} Rc8 {[%emt 0:48:52]} 14. f4 {[%emt 0:59:07]} (14. h4 $11) 14... O-O {[%emt 0:46:01]} (14... Bxd5 $15 15. exd5 Nd4) 15. f5 {[%emt 0:42:40]} Bxd5 {[%emt 0:45:03]} 16. exd5 {[%emt 0:43:02]} Ne7 {[%emt 0:43:02]} 17. g4 {[%emt 0:38:57]} (17. fxg6 $1 $11 fxg6 18. g4) 17... gxf5 {[%emt 0:44:39]} 18. gxh5 {[%emt 0:34:09]} Bh6 {[%emt 0:39:10]} 19. Bc1 {[%emt 0:39:10]} Bxc1 {[%emt 0:30:51]} 20. Qxc1 {[%emt 0:28:35]} f4 {[%emt 0:35:26]} 21. Bf3 {[%emt 0:28:47]} Kh8 {[%emt 0:25:14]} 22. Qd2 {[%emt 0:28:14] [#]} Rg8 $1 {[%emt 0:24:58]} 23. Bg4 {[%emt 0:19:43]} f5 {[%emt 0:21:06]} ({Don't take} 23... Rxg4 24. hxg4 Qxg4 25. Qe2 Qg3+ 26. Qf2 $15) 24. Bf3 {[%emt 0:20:12]} Rg3 {[%emt 0:20:12]} 25. Qf2 {[%emt 0:18:21]} Qe8 {[%emt 0:15:42]} 26. O-O-O {[%emt 0:16:51]} Qf7 {[%emt 0:15:55]} 27. c4 {[%emt 0:15:28]} Rcg8 {[%emt 0:14:25]} 28. Rdf1 {[%emt 0:12:04]} R8g7 {[%emt 0:13:48]} 29. Qb2 {[%emt 0:11:56]} Ng8 {[%emt 0:13:41]} 30. b4 {[%emt 0:09:24]} b6 {[%emt 0:09:24]} 31. h6 {[%emt 0:14:11]} Rh7 {[%emt 0:11:15]} 32. bxc5 {[%emt 0:06:17]} bxc5 {[%emt 0:11:33]} 33. Bd1 {[%emt 0:11:33]} Qf8 {[%emt 0:10:34]} 34. Kb1 {[%emt 0:02:56]} Qxh6 {[%emt 0:10:31]} 35. Qb8 {[%emt 0:02:44]} Rgg7 {[%emt 0:07:09]} 36. Bb3 {[%emt 0:07:09]} Qf6 {[%emt 0:05:16]} 37. Rfg1 {[%emt 0:05:16]} f3 {[%emt 0:02:10]} 38. Rf1 {[%emt 0:01:36]} e4 {[%emt 0:03:23]} 39. Rhg1 {[%emt 0:01:12]} Qd4 {[%emt 0:01:12]} 40. Rxg7 {[%emt 0:00:51]} Qxd3+ {[%emt 0:00:22]} 41. Kb2 {[%emt 0:01:12]} Rxg7 {[%emt 0:00:38]} 42. Rd1 {[%emt 0:00:44]} Qe2+ {[%emt 0:00:42]} 43. Ka3 {[%emt 0:00:54]} Qh2 {[%emt 0:00:38]} 44. Qf8 {[%emt 0:29:38]} Qe5 {[%emt 0:30:31]} 45. h4 {[%emt 0:30:31]} Qf6 {[%emt 0:20:44]} (45... e3 $142 46. h5 Qc3) 46. Qe8 {[%emt 0:26:02]} Qf7 {[%emt 0:19:47]} 47. Qxf7 $19 {[%emt 0:19:19]} Rxf7 {[%emt 0:20:08]} 48. Rf1 {[%emt 0:19:20]} Nf6 {[%emt 0:20:31]} 49. Bd1 {[%emt 0:19:14]} Ng4 {[%emt 0:20:54]} 50. Ba4 {[%emt 0:16:23]} Ne3 {[%emt 0:21:04]} 0-1

[Event "1.FrauenBL 2016-17"]
[Site "Berlin"]
[Date "2017.04.29"]
[Round "11.7"]
[White "Hapala, Elisabeth"]
[Black "Naiditsch, Irina"]
[Result "0-1"]
[ECO "B33"]
[WhiteElo "2091"]
[BlackElo "2237"]
[Annotator "NA"]
[PlyCount "114"]
[EventDate "2017.??.??"]
[EventType "team-tourn"]
[EventCountry "GER"]
[SourceTitle "playchess.com"]
[Source "ChessBase"]
[SourceQuality "1"]
[WhiteTeam "SG Augsburg"]
[BlackTeam "SF Deizisau"]
[TimeControl "40/6000+30:3000+30"]

1. e4 {[%emt 1:30:28]} c5 {[%emt 1:30:19]} 2. Nf3 {[%emt 1:30:53]} Nc6 {[%emt 1:31:18]} 3. d4 {[%emt 1:31:18]} cxd4 {[%emt 1:30:53]} 4. Nxd4 {[%emt 1:30:53]} Qb6 {[%emt 1:31:15]} 5. Nb3 {[%emt 1:32:05]} Nf6 {[%emt 1:31:08]} 6. Nc3 {[%emt 1:31:08]} e6 {[%emt 1:31:25]} 7. Bd3 {[%emt 1:32:49]} a6 {[%emt 1:32:49]} 8. Be3 {[%emt 1:33:06]} Qc7 {[%emt 1:30:58]} 9. f4 {[%emt 1:33:25]} d6 {[%emt 1:33:25]} 10. Qf3 {[%emt 1:33:38]} b5 {[%emt 1:30:11] B33: Sicilian: Pelikan and Sveshnikov Variations} 11. a4 {[%emt 1:31:34]} b4 {[%emt 1:28:38]} 12. Nb1 $146 {[%emt 1:31:19]} (12. Ne2 g6 13. Nd2 Bb7 14. O-O Bg7 15. Rae1 O-O 16. Kh1 Nd7 17. b3 Na5 18. Qh3 {1-0 (35) Naiditsch,A (2711)-Carow,J (2410) Deizisau 2015}) 12... e5 {[%emt 1:31:19]} 13. f5 {[%emt 1:30:33]} Bb7 {[%emt 1:30:33]} 14. N1d2 {[%emt 1:30:33]} Be7 {[%emt 1:01:08]} 15. g4 {[%emt 1:29:00]} d5 {[%emt 0:56:08]} 16. g5 {[%emt 1:27:35]} d4 {[%emt 0:53:44]} 17. Bf2 {[%emt 0:53:44]} Nd7 {[%emt 0:54:02]} 18. h4 {[%emt 1:25:58]} h6 {[%emt 0:44:18]} 19. O-O-O {[%emt 1:05:45]} hxg5 {[%emt 1:05:45]} 20. hxg5 {[%emt 1:06:10]} Rxh1 {[%emt 1:06:10]} 21. Rxh1 {[%emt 1:02:04]} Bxg5 {[%emt 0:35:31]} 22. Qh5 {[%emt 1:01:43]} Bf6 {[%emt 1:01:43]} 23. Bh4 {[%emt 1:00:27]} (23. Rg1 $16) 23... O-O-O {[%emt 0:32:46]} 24. Bxf6 {[%emt 0:50:15]} Nxf6 {[%emt 0:33:10]} 25. Qg5 {[%emt 0:50:41]} Rg8 {[%emt 0:33:04]} 26. Nc5 {[%emt 0:47:10]} Na5 {[%emt 0:29:01]} 27. Nxb7 {[%emt 0:29:01]} ({But not} 27. Nxa6 $2 Qd6 28. Qg3 Bxa6 $19) 27... Kxb7 {[%emt 0:29:28]} 28. b3 {[%emt 0:43:51]} Ka7 {[%emt 0:28:40]} 29. Qg2 {[%emt 0:35:24]} Qc5 {[%emt 0:16:27]} 30. Qe2 {[%emt 0:30:36]} Qc6 {[%emt 0:30:36]} 31. Kb1 {[%emt 0:28:21]} Nb7 {[%emt 0:06:58]} 32. Nf3 {[%emt 0:19:25]} Nd7 {[%emt 0:19:25]} 33. Qh2 {[%emt 0:05:29]} f6 {[%emt 0:04:29]} 34. Bc4 {[%emt 0:03:07]} Rc8 {[%emt 0:03:07]} ({Not} 34... Qxe4 $2 35. Nd2 (35. Bxg8 Qxf3 36. Rg1 Ndc5 $11) 35... Qxf5 36. Bxg8 $18) 35. Qe2 {[%emt 0:04:39]} Nd6 {[%emt 0:04:21]} 36. Bd5 {[%emt 0:01:39]} Qc3 {[%emt 0:04:24]} 37. Rh7 {[%emt 0:01:32]} (37. Be6 {might work better.} Rc7 38. Bxd7 Rxd7 39. Rg1) 37... Nc5 {[%emt 0:02:34]} 38. Rxg7+ {[%emt 0:01:47]} Kb6 {[%emt 0:03:02]} 39. Ne1 {[%emt 0:00:27]} Rh8 {[%emt 0:00:27]} 40. Rg1 {[%emt 0:00:13]} Rh3 {[%emt 0:00:13]} 41. Qg4 {[%emt 0:15:58]} Re3 {[%emt 0:15:58]} 42. a5+ {[%emt 0:29:50]} Kxa5 {[%emt 0:05:23]} 43. Qg8 {[%emt 0:00:47]} Rxe1+ {[%emt 0:00:47]} 44. Rxe1 {[%emt 0:01:15]} Qxe1+ {[%emt 0:28:05]} 45. Ka2 {[%emt 0:28:05]} Ncb7 {[%emt 0:01:43]} 46. Bxb7 {[%emt 0:26:46]} Nxb7 {[%emt 0:00:58]} 47. Qd5+ {[%emt 0:00:29]} Kb6 {[%emt 0:00:29]} 48. Qe6+ {[%emt 0:00:56]} Ka7 {[%emt 0:00:56]} 49. Qxf6 {[%emt 0:01:22]} Qxe4 {[%emt 0:01:22]} 50. Kb2 {[%emt 0:01:45]} d3 {[%emt 0:23:28]} 51. cxd3 {[%emt 0:02:03]} Qe2+ {[%emt 0:23:53]} 52. Kc1 {[%emt 0:00:42]} Qe1+ {[%emt 0:24:11]} 53. Kb2 {[%emt 0:01:06]} Qc3+ {[%emt 0:24:14]} 54. Ka2 {[%emt 0:24:14]} Qc2+ {[%emt 0:24:35]} 55. Ka1 {[%emt 0:01:59]} Qc1+ {[%emt 0:24:56]} 56. Ka2 {[%emt 0:02:23]} Qa3+ {[%emt 0:02:23]} 57. Kb1 {[%emt 2:20:31]} Qxb3+ {[%emt 0:25:45]} 0-1

[Event "1.FrauenBL 2016-17"]
[Site "Berlin"]
[Date "2017.04.29"]
[Round "11.8"]
[White "Papp, Petra"]
[Black "Ankerst, Milka"]
[Result "1-0"]
[ECO "B35"]
[WhiteElo "2378"]
[BlackElo "2064"]
[Annotator "NA"]
[PlyCount "59"]
[EventDate "2017.??.??"]
[EventType "team-tourn"]
[EventCountry "GER"]
[SourceTitle "playchess.com"]
[Source "ChessBase"]
[SourceQuality "1"]
[WhiteTeam "SK Schwäbisch Hall"]
[BlackTeam "FC Bayern München"]
[TimeControl "40/6000+30:3000+30"]

{[%evp 22,59,46,45,55,52,51,35,38,45,59,32,45,76,52,56,64,57,67,76,103,32767,451,32767,32767,499,32767,32767,984,814,32767,837,32767,32767,858,802,1077,32767,32767,2170]} 1. e4 {[%emt 1:30:24]} c5 {[%emt 1:30:19]} 2. Nf3 {[%emt 1:30:39]} Nc6 {[%emt 1:30:36]} 3. Nc3 {[%emt 1:30:39]} g6 {[%emt 1:30:29]} 4. d4 {[%emt 1:30:34]} cxd4 {[%emt 1:30:34]} 5. Nxd4 {[%emt 1:30:58]} Bg7 {[%emt 1:31:15]} 6. Be3 {[%emt 1:31:15]} Nf6 {[%emt 1:28:58]} 7. Bc4 {[%emt 1:29:55]} Qa5 {[%emt 1:27:57]} 8. O-O {[%emt 1:27:57]} O-O {[%emt 1:27:57]} 9. Bb3 {[%emt 1:24:44]} d6 {[%emt 1:27:47]} 10. h3 {[%emt 1:23:52]} Bd7 {[%emt 1:26:37]} 11. Re1 {[%emt 1:20:51]} Nxd4 {[%emt 1:17:29]} 12. Bxd4 {[%emt 1:17:29]} Bc6 {[%emt 1:20:52] B35: Sicilian: Accelerated Dragon with 5 Nc3: main line} 13. Nd5 {[%emt 1:11:31]} Bxd5 {[%emt 1:14:41]} 14. exd5 {[%emt 1:14:50]} Rfe8 {[%emt 1:14:50] LiveBook: 16 Games} 15. c3 {[%emt 1:08:03]} ({Relevant:} 15. c4 a6 16. Re3 Rac8 17. Bc3 Qc5 18. a3 Nd7 19. Bxg7 Kxg7 20. Ba2 {½-½ (42) Havelka,J (2330)-Gasanov,E (2466) Marianske Lazne 2017}) 15... a6 {[%emt 1:13:13]} 16. Be3 $146 {[%emt 1:13:13]} ({Predecessor (4):} 16. Qf3 Nd7 17. Bxg7 Kxg7 18. Re3 Nf6 19. Rae1 Qc7 20. g4 {1-0 (34) Pecha,T (2239)-Certek,P (2322) Slovakia 2011}) 16... Rac8 {[%emt 1:09:19]} 17. Bg5 {[%emt 0:49:00]} Rc5 {[%emt 1:04:24]} 18. Qf3 {[%emt 1:04:24]} Qd8 {[%emt 0:57:41]} 19. Re2 {[%emt 0:57:41]} Nd7 {[%emt 0:55:46]} 20. Rae1 {[%emt 0:40:54]} Be5 {[%emt 0:40:54]} 21. h4 {[%emt 0:35:01]} h5 $2 {[%emt 0:40:22]} (21... Qc8 $16) 22. Rxe5 {[%emt 0:24:32]} Nxe5 {[%emt 0:24:32] [#]} 23. Rxe5 $1 {[%emt 0:24:24]} f6 {[%emt 0:34:29]} 24. Re6 {[%emt 0:23:30]} Rf8 {[%emt 0:28:30]} 25. Bh6 {[%emt 0:28:30]} Rf7 {[%emt 0:27:42]} 26. Bc2 {[%emt 0:27:42]} Rh7 {[%emt 0:27:28]} 27. Be3 {[%emt 0:20:36]} Rc4 {[%emt 0:20:36]} 28. Bxg6 {[%emt 0:19:50]} Rxh4 {[%emt 0:18:44]} 29. Bxh7+ {[%emt 0:19:26]} Kxh7 {[%emt 0:19:26]} 30. g3 $18 {[%emt 0:15:46]} 1-0

[Event "1.FrauenBL 2016-17"]
[Site "Berlin"]
[Date "2017.04.29"]
[Round "11.8"]
[White "Schleining, Zoya"]
[Black "Georgescu, Lena"]
[Result "1-0"]
[ECO "A80"]
[WhiteElo "2349"]
[BlackElo "2187"]
[Annotator "ChessBase"]
[PlyCount "41"]
[EventDate "2017.??.??"]
[EventType "team-tourn"]
[EventCountry "GER"]
[SourceTitle "playchess.com"]
[Source "ChessBase"]
[SourceQuality "1"]
[WhiteTeam "SF Deizisau"]
[BlackTeam "SG Augsburg"]
[TimeControl "40/6000+30:3000+30"]

1. d4 {[%emt 1:30:27]} f5 {[%emt 1:30:23]} 2. Nc3 {[%emt 1:30:44]} Nf6 {[%emt 1:30:44]} 3. Bg5 {[%emt 1:31:01]} d5 {[%emt 1:31:13]} 4. e3 {[%emt 1:31:02]} e6 {[%emt 1:30:18]} 5. Nf3 {[%emt 1:29:56]} Be7 {[%emt 1:29:56]} 6. Bd3 {[%emt 1:29:22]} O-O {[%emt 1:29:22]} 7. O-O {[%emt 1:28:19]} b6 {[%emt 1:22:37]} 8. Ne2 {[%emt 1:16:31]} h6 {[%emt 1:16:31]} 9. Bxf6 {[%emt 1:09:23]} Bxf6 {[%emt 1:09:39]} 10. c4 {[%emt 1:13:42]} c6 {[%emt 1:05:39]} 11. Rc1 {[%emt 1:08:32]} Bb7 {[%emt 1:08:32]} 12. Qb3 {[%emt 7:27:29]} g5 {[%emt 0:55:31]} 13. Ne5 {[%emt 0:49:56]} Bxe5 {[%emt 0:45:44]} 14. dxe5 {[%emt 0:50:07]} Nd7 {[%emt 0:50:07]} 15. cxd5 {[%emt 0:48:51]} Nc5 {[%emt 0:48:51]} 16. Rxc5 {[%emt 0:43:52]} bxc5 {[%emt 0:44:11]} 17. d6 {[%emt 0:45:43]} Qd7 {[%emt 0:41:03]} 18. Bc4 {[%emt 0:44:14]} Rfe8 {[%emt 0:40:58]} 19. f4 {[%emt 0:43:56]} Kg7 {[%emt 0:36:45]} 20. Ng3 {[%emt 0:40:46]} Kg6 {[%emt 0:36:48]} 21. e4 {[%emt 0:36:25]} 1-0

[Event "1.FrauenBL 2016-17"]
[Site "Berlin"]
[Date "2017.04.29"]
[Round "11.8"]
[White "Scheynin, Julia"]
[Black "Steinbacher, Claudia"]
[Result "1/2-1/2"]
[ECO "B25"]
[WhiteElo "2028"]
[BlackElo "2043"]
[Annotator "NA"]
[PlyCount "105"]
[EventDate "2017.??.??"]
[EventType "team-tourn"]
[EventCountry "GER"]
[SourceTitle "playchess.com"]
[Source "ChessBase"]
[SourceQuality "1"]
[WhiteTeam "Karlsruher SF"]
[BlackTeam "Rodewischer SM"]
[TimeControl "40/6000+30:3000+30"]

1. e4 {[%emt 1:30:26]} c5 {[%emt 1:30:19]} 2. Nc3 {[%emt 1:30:46]} Nc6 {[%emt 1:30:30]} 3. g3 {[%emt 1:31:04]} g6 {[%emt 1:29:38]} 4. Bg2 {[%emt 1:31:30]} Bg7 {[%emt 1:30:03]} 5. f4 {[%emt 1:31:45]} d6 {[%emt 1:27:22]} 6. d3 {[%emt 1:28:18]} e6 {[%emt 1:28:18]} 7. Nf3 {[%emt 1:25:25]} Nge7 {[%emt 1:25:25]} 8. O-O {[%emt 1:25:44]} O-O {[%emt 1:21:05]} 9. Bd2 {[%emt 1:24:51]} a6 {[%emt 1:20:12]} 10. Rb1 {[%emt 1:15:21]} b5 {[%emt 1:12:35] B25: Closed Sicilian: 3 g3, lines without early Be3} (10... Rb8 11. Ne2 b5 12. c3 Bd7 13. g4 f5 14. g5 e5 15. fxe5 Nxe5 16. Nxe5 dxe5 17. Be3 Qc7 18. Qc2 {0-1 (37) Kopta,J (1960)-Kocian,K (2222) Czechia 2014}) 11. a3 {[%emt 1:12:36]} Qb6 {[%emt 1:11:38]} 12. Kh1 {[%emt 1:12:09]} a5 $146 {[%emt 1:11:37]} (12... Bb7 13. Qe1 a5 14. Nd1 b4 15. Ne3 Ba6 16. g4 Nd4 17. Nxd4 Bxd4 18. Nc4 Bxc4 19. dxc4 {0-1 (29) Gonzalez Lopez,L-Alcaraz Soriano,A Murcia 2000}) 13. a4 {[%emt 1:09:14]} bxa4 {[%emt 1:04:44]} 14. Nxa4 {[%emt 1:09:13]} Qc7 {[%emt 1:05:10]} 15. b3 {[%emt 0:59:51]} Nd4 {[%emt 0:59:58]} 16. Nxd4 {[%emt 0:50:23]} cxd4 {[%emt 1:00:04]} ({Don't capture} 16... Bxd4 $2 17. e5 Ba6 18. c3 $18) 17. c3 {[%emt 0:48:52]} Ba6 {[%emt 0:58:27]} 18. c4 {[%emt 0:46:38]} Nc6 {[%emt 0:55:31]} 19. f5 {[%emt 0:42:45]} f6 {[%emt 0:51:57]} 20. fxe6 {[%emt 0:51:57]} Rae8 {[%emt 0:52:07]} 21. Bf4 {[%emt 0:29:29]} Ne5 {[%emt 0:51:13]} 22. Bxe5 {[%emt 0:26:57]} dxe5 {[%emt 0:51:12]} 23. b4 {[%emt 0:25:22]} axb4 {[%emt 0:25:22]} 24. Rxb4 {[%emt 0:24:10]} Rxe6 {[%emt 0:47:10]} 25. Qb3 {[%emt 0:47:10]} Rf7 {[%emt 0:42:11]} 26. Rb1 {[%emt 0:18:00]} Bf8 {[%emt 0:39:19]} 27. c5 {[%emt 0:11:57]} Rc6 {[%emt 0:38:39]} 28. Rc1 {[%emt 0:08:17]} (28. Bh3 $11) 28... Bc8 {[%emt 0:27:07]} 29. Rb6 {[%emt 0:06:54]} Rxb6 {[%emt 0:16:37]} 30. Nxb6 {[%emt 0:06:47]} Kg7 $11 {[%emt 0:12:56]} ({Don't take} 30... Bxc5 $2 31. Nxc8 (31. Na4 Qb7 32. Nxc5 Qxb3 33. Nxb3 Be6 $18) 31... Qxc8 32. Qc4 $18) 31. Nd5 {[%emt 0:04:39]} Qa5 {[%emt 0:11:07]} 32. Qc2 {[%emt 0:03:34]} Ra7 {[%emt 0:03:34]} 33. Qf2 {[%emt 0:03:03]} Qd8 {[%emt 0:03:03]} 34. c6 {[%emt 0:02:33]} Bd6 {[%emt 0:07:53]} 35. Rf1 {[%emt 0:02:29]} Rf7 {[%emt 0:02:29]} 36. Qc2 {[%emt 0:02:54]} Be6 {[%emt 0:05:14]} 37. Rc1 {[%emt 0:03:02]} Bxd5 {[%emt 0:03:02]} 38. exd5 {[%emt 0:03:30]} Qa5 {[%emt 0:03:34]} 39. g4 {[%emt 0:02:48]} Qa3 {[%emt 0:02:54]} 40. Rf1 {[%emt 0:02:48]} Rc7 {[%emt 0:01:55]} 41. Be4 {[%emt 0:02:59]} Be7 {[%emt 0:29:55]} 42. Qf2 {[%emt 0:29:32]} Qd6 {[%emt 0:27:11]} 43. Qa2 {[%emt 0:26:26]} Qc5 {[%emt 0:19:49]} 44. Qb2 {[%emt 0:22:22]} Bd6 {[%emt 0:14:44]} 45. Qf2 {[%emt 0:14:44]} Rf7 {[%emt 0:20:30]} 46. Qg2 {[%emt 0:19:14]} Bc7 {[%emt 0:12:43]} 47. h4 {[%emt 0:17:31]} Rf8 {[%emt 0:11:45]} 48. h5 {[%emt 0:16:24]} Qd6 {[%emt 0:08:38]} 49. Qh3 {[%emt 0:14:35]} Bd8 {[%emt 0:07:07]} 50. h6+ {[%emt 0:13:49]} Kh8 {[%emt 0:07:19]} 51. Qg2 {[%emt 0:12:14]} f5 {[%emt 0:12:14]} 52. Z0 {[%emt 0:12:14]} g5 {[%emt 0:12:14]} 53. Z0 {[%emt 0:12:14] Rh8 0:12:14} 1/2-1/2

[Event "1.FrauenBL 2016-17"]
[Site "Berlin"]
[Date "2017.04.29"]
[Round "11.9"]
[White "Sieber, Fiona"]
[Black "Endress, Anna"]
[Result "1-0"]
[ECO "B90"]
[WhiteElo "2193"]
[BlackElo "2116"]
[Annotator "NA"]
[PlyCount "55"]
[EventDate "2017.??.??"]
[EventType "team-tourn"]
[EventCountry "GER"]
[SourceTitle "playchess.com"]
[Source "ChessBase"]
[SourceQuality "1"]
[WhiteTeam "SK Lehrte"]
[BlackTeam "TuRa Harksheide"]
[TimeControl "40/6000+30:3000+30"]

1. e4 {[%emt 1:30:30]} c5 {[%emt 1:30:23]} 2. Nf3 {[%emt 1:30:51]} d6 {[%emt 1:30:51]} 3. d4 {[%emt 1:30:47]} cxd4 {[%emt 1:31:12]} 4. Nxd4 {[%emt 1:31:43]} Nf6 {[%emt 1:31:36]} 5. Nc3 {[%emt 1:32:09]} a6 {[%emt 1:31:59]} 6. Be3 {[%emt 1:31:59]} e5 {[%emt 1:32:09]} 7. Nb3 {[%emt 1:32:13]} Be7 {[%emt 1:32:15]} 8. f3 {[%emt 1:32:22]} Be6 {[%emt 1:32:12]} 9. Qd2 {[%emt 1:32:20]} h5 {[%emt 1:31:26]} 10. O-O-O {[%emt 1:28:35]} Nbd7 {[%emt 1:28:29]} 11. Kb1 {[%emt 1:22:04]} Rc8 {[%emt 1:22:04]} 12. Be2 {[%emt 1:02:46] B90: Sicilian Najdorf: Unusual White 6th moves, 6 Be3 Ng4 and 6 Be3 e5} ({Relevant:} 12. Bd3 Qc7 13. h3 h4 14. f4 b5 15. Rhe1 Bc4 16. fxe5 dxe5 17. Nd5 Nxd5 18. exd5 Bxd3 19. Qxd3 Qc4 {1-0 (27) Shirov,A (2683)-Delgado Ramirez,N (2615) Florianopolis 2017}) 12... Qc7 {[%emt 1:06:52]} 13. Rhe1 {[%emt 1:00:43]} O-O $146 {[%emt 1:00:43]} ({Predecessor (3):} 13... b5 14. Nd5 Bxd5 15. exd5 Nb6 16. Bxb6 Qxb6 17. Bf1 O-O 18. g3 Bd8 19. f4 e4 {0-1 (39) Liwak,P (2250)-Staniszewski,P (2435) Poland 1998}) 14. f4 {[%emt 0:50:13]} Nb6 {[%emt 0:37:39]} 15. Bxb6 {[%emt 0:31:36]} Qxb6 {[%emt 0:38:02]} 16. f5 {[%emt 0:31:58]} Bc4 {[%emt 0:34:09]} 17. h3 {[%emt 0:30:28]} Rfd8 {[%emt 0:20:30]} 18. Bxc4 {[%emt 0:29:03]} Rxc4 {[%emt 0:20:07] [#]} 19. g4 $1 {[%emt 0:29:15]} d5 {[%emt 0:18:14]} 20. Nxd5 {[%emt 0:25:53]} Nxd5 {[%emt 0:18:18]} 21. exd5 {[%emt 0:26:16]} hxg4 {[%emt 0:16:08]} 22. Qe2 {[%emt 0:25:48]} Rdc8 {[%emt 0:15:33]} 23. hxg4 $14 {[%emt 0:23:46]} Bf6 {[%emt 0:11:48]} 24. d6 {[%emt 0:20:04]} e4 {[%emt 0:03:20]} 25. d7 {[%emt 0:20:00]} R8c6 {[%emt 0:03:43]} 26. Rh1 {[%emt 0:16:25]} Qc7 {[%emt 0:03:22]} 27. Qh2 {[%emt 0:16:08]} g6 {[%emt 0:00:30]} 28. d8=R+ {[%emt 0:00:30]} 1-0

[Event "1.FrauenBL 2016-17"]
[Site "Berlin"]
[Date "2017.04.29"]
[Round "11.9"]
[White "Birkholz, Olga"]
[Black "Klek, Hanna Marie"]
[Result "1/2-1/2"]
[ECO "A47"]
[WhiteElo "2082"]
[BlackElo "2376"]
[Annotator "ChessBase"]
[PlyCount "79"]
[EventDate "2017.??.??"]
[EventType "team-tourn"]
[EventCountry "GER"]
[SourceTitle "playchess.com"]
[Source "ChessBase"]
[SourceQuality "1"]
[WhiteTeam "SG Augsburg"]
[BlackTeam "SF Deizisau"]
[TimeControl "40/6000+30:3000+30"]

1. d4 {[%emt 1:29:12]} Nf6 {[%emt 1:30:23]} 2. Nf3 {[%emt 1:28:52]} e6 {[%emt 1:30:35]} 3. c3 {[%emt 1:28:35]} c5 {[%emt 1:29:37]} 4. e3 {[%emt 1:29:37]} b6 {[%emt 1:29:03]} 5. Bd3 {[%emt 1:27:05]} Bb7 {[%emt 1:28:31]} 6. Nbd2 {[%emt 1:27:05]} Be7 {[%emt 1:25:58]} 7. O-O {[%emt 1:27:14]} O-O {[%emt 1:22:27]} 8. Ne5 {[%emt 1:22:27]} d6 {[%emt 1:22:27]} 9. Ng4 {[%emt 1:22:17]} Nbd7 {[%emt 1:05:48]} 10. f4 {[%emt 1:21:59]} e5 {[%emt 1:00:11]} 11. fxe5 {[%emt 1:09:19]} dxe5 {[%emt 0:59:01]} 12. dxe5 {[%emt 1:07:52]} Nxg4 {[%emt 0:54:16]} 13. Qxg4 {[%emt 1:08:20]} Bg5 {[%emt 0:48:08]} 14. Qh3 {[%emt 0:58:17]} Bh6 {[%emt 0:43:32]} 15. Nf3 {[%emt 0:43:32]} Bxf3 {[%emt 0:38:34]} 16. gxf3 {[%emt 0:50:01]} Nxe5 {[%emt 0:38:52]} 17. Be4 {[%emt 0:50:23]} Rc8 {[%emt 0:37:43]} 18. Qf5 {[%emt 0:45:00]} Ng6 {[%emt 0:37:48]} 19. f4 {[%emt 0:41:36]} Rc7 {[%emt 0:34:48]} 20. Bc2 {[%emt 0:34:48]} c4 {[%emt 0:30:48]} 21. e4 {[%emt 0:29:48]} Ne7 {[%emt 0:28:07]} 22. Qh3 {[%emt 0:29:50]} f5 {[%emt 0:24:27]} 23. Be3 {[%emt 0:25:10]} fxe4 {[%emt 0:22:58]} 24. Bxe4 {[%emt 0:22:58]} Rd7 {[%emt 0:17:56]} 25. Qe6+ {[%emt 0:23:06]} Kh8 {[%emt 0:23:06]} 26. Qxc4 {[%emt 0:23:06]} Nf5 {[%emt 0:18:17]} 27. Bxf5 {[%emt 0:09:23]} Rxf5 {[%emt 0:18:46]} 28. Rf3 {[%emt 0:09:51]} Qf8 {[%emt 0:09:51]} 29. Raf1 {[%emt 0:09:08]} Rdf7 {[%emt 0:14:26]} 30. Qd4 {[%emt 0:14:26]} Bg5 {[%emt 0:06:38]} 31. Kg2 {[%emt 0:05:32]} Qa8 {[%emt 0:13:17]} 32. Kg3 {[%emt 0:04:18]} Be7 {[%emt 0:11:16]} 33. Qc4 {[%emt 0:03:40]} b5 {[%emt 7:50:20]} 34. Qd3 {[%emt 7:50:20]} Qc6 {[%emt 0:02:45]} 35. Kg2 {[%emt 0:00:41]} Bd6 {[%emt 0:04:57]} 36. Kg1 {[%emt 0:04:57]} a6 {[%emt 0:03:08]} 37. Qc2 {[%emt 0:00:14]} h6 {[%emt 0:01:35]} 38. Qd3 {[%emt 0:00:15]} Bc7 {[%emt 0:01:14]} 39. Qc2 {[%emt 0:00:17]} Bd6 {[%emt 0:00:17]} 40. Qd3 {[%emt 0:00:47]} 1/2-1/2